bitfinex-derivatives/quotes_BTCF0:USTF0_20250608
["timestamp","ask_amount","ask_price","bid_price","bid_amount"]
[1749378773686,0.08895497,105210.0,105200.0,0.1900223]
[1749378773984,0.76562077,105230.0,105220.0,0.1899862]
[1749378774185,0.74812587,105230.0,105220.0,0.66603628]
[1749378775484,0.74812587,105230.0,105220.0,0.6215062]
[1749378775984,0.66847008,105230.0,105220.0,0.66603628]
[1749378776678,0.66847008,105230.0,105220.0,0.23451628]
[1749378776975,0.67347008,105230.0,105220.0,0.23551628]
[1749378777279,0.67747008,105230.0,105220.0,0.23551628]
[1749378778481,0.67747008,105230.0,105220.0,0.1909862]
[1749378778672,0.70877008,105230.0,105220.0,0.1909862]
[1749378784201,0.70477008,105230.0,105220.0,0.1909862]
[1749378784393,0.70777008,105230.0,105220.0,0.1909862]
[1749378784898,0.71181886,105230.0,105220.0,0.1909862]
[1749378785199,0.71081886,105230.0,105220.0,0.1909862]
[1749378786099,0.71081886,105230.0,105220.0,0.23551628]
[1749378787090,0.67951886,105230.0,105220.0,0.23551628]
[1749378787288,0.67951886,105230.0,105220.0,0.30041628]
[1749378787689,0.64021968,105230.0,105220.0,0.30041628]
[1749378787891,0.64021968,105230.0,105220.0,0.33101628]
[1749378788588,0.60931968,105230.0,105220.0,0.33101628]
[1749378790504,0.24851968,105230.0,105220.0,0.33101628]
[1749378790703,0.64081968,105230.0,105220.0,0.33101628]
[1749378791199,0.63681968,105230.0,105220.0,0.33001628]
[1749378791401,0.64081968,105230.0,105220.0,0.33101628]
[1749378792103,0.63781968,105230.0,105220.0,0.33001628]
[1749378792505,0.63481968,105230.0,105220.0,0.33001628]
[1749378793207,0.08895497,105250.0,105240.0,0.1899507]
[1749378793403,0.189937,105250.0,105240.0,0.04453008]
[1749378793602,0.395637,105250.0,105240.0,0.23448078]
[1749378793804,0.395637,105250.0,105240.0,0.1899507]
[1749378794106,0.40558202,105250.0,105240.0,0.1899507]
[1749378794509,0.40958202,105250.0,105240.0,0.1909507]
[1749378795110,0.40558202,105250.0,105240.0,0.1899507]
[1749378795310,0.40758202,105250.0,105240.0,0.1899507]
[1749378795810,0.40858202,105250.0,105240.0,0.1899507]
[1749378797505,0.40858202,105250.0,105240.0,0.19070451]
[1749378798701,0.40858202,105250.0,105240.0,0.23508503]
[1749378800010,0.4126308,105250.0,105240.0,0.23508503]
[1749378806116,0.4126308,105250.0,105240.0,0.19070451]
[1749378807812,0.3024308,105250.0,105240.0,0.19070451]
[1749378808015,0.3026308,105250.0,105240.0,0.55150451]
[1749378808208,0.2713308,105250.0,105240.0,0.58440451]
[1749378808414,0.2713308,105250.0,105240.0,0.61450451]
[1749378809618,0.2393308,105250.0,105240.0,0.61450451]
[1749378809818,0.2381308,105250.0,105240.0,0.61450451]
[1749378810013,0.2363308,105250.0,105240.0,0.64710451]
[1749378810913,0.2039308,105250.0,105240.0,0.69148503]
[1749378811119,0.2039308,105250.0,105240.0,0.72148503]
[1749378811322,0.19398578,105250.0,105240.0,0.72148503]
[1749378811522,0.19418578,105250.0,105240.0,0.72148503]
[1749378811818,0.20346193,105250.0,105240.0,0.72148503]
[1749378812013,0.20366193,105250.0,105240.0,0.79710495]
[1749378812410,0.20346193,105250.0,105240.0,0.79710495]
[1749378812714,0.20366193,105250.0,105240.0,0.79710495]
[1749378812920,0.19418578,105250.0,105240.0,0.79710495]
[1749378813321,0.19398578,105250.0,105240.0,0.79710495]
[1749378814115,0.19418578,105250.0,105240.0,0.76710495]
[1749378814321,0.19418578,105250.0,105240.0,1.12710495]
[1749378815624,0.20366478,105250.0,105240.0,1.13671153]
[1749378816124,0.20366478,105250.0,105240.0,1.15170446]
[1749378818029,0.20366478,105250.0,105240.0,1.14209788]
[1749378818728,0.19418578,105250.0,105240.0,1.14209788]
[1749378819626,0.19418578,105250.0,105240.0,1.23115805]
[1749378819826,0.19418578,105250.0,105240.0,1.14209788]
[1749378820222,0.00424878,105250.0,105240.0,1.23115805]
[1749378821221,0.32522918,105260.0,105250.0,0.1899326]
[1749378821422,0.32522918,105260.0,105250.0,1.12314357]
[1749378821627,0.23026678,105260.0,105250.0,1.18251702]
[1749378822430,0.23046678,105260.0,105250.0,1.18251702]
[1749378823031,0.23146678,105260.0,105250.0,1.18251702]
[1749378823626,0.23146678,105260.0,105250.0,1.28171702]
[1749378823829,0.23346678,105260.0,105250.0,1.28171702]
[1749378824925,0.23346678,105260.0,105250.0,1.29171702]
[1749378825322,0.20266678,105260.0,105250.0,1.29171702]
[1749378826222,0.23456678,105260.0,105250.0,1.29171702]
[1749378827136,0.23456678,105260.0,105250.0,0.86043702]
[1749378827330,0.23456678,105260.0,105250.0,1.19497702]
[1749378827530,0.29806678,105260.0,105250.0,1.19497702]
[1749378828134,0.29806678,105260.0,105250.0,0.66453702]
[1749378828332,0.29806678,105260.0,105250.0,1.09577702]
[1749378829335,0.29806678,105260.0,105250.0,0.66453702]
[1749378829534,0.30211556,105260.0,105250.0,1.04134605]
[1749378830131,0.30211556,105260.0,105250.0,1.10134605]
[1749378830533,0.30211556,105260.0,105250.0,0.29449808]
[1749378830534,0.66291556,105260.0,105250.0,0.29449808]
[1749378830730,0.66291556,105260.0,105250.0,0.23512463]
[1749378830731,0.69291556,105260.0,105250.0,0.23512463]
[1749378831035,0.66291556,105260.0,105250.0,0.23512463]
[1749378831224,0.70291556,105260.0,105250.0,0.23512463]
[1749378831429,0.66291556,105260.0,105250.0,0.23512463]
[1749378832437,0.30211556,105260.0,105250.0,0.23512463]
[1749378833039,0.66291556,105260.0,105250.0,0.23512463]
[1749378833633,0.30211556,105260.0,105250.0,0.23512463]
[1749378833834,0.66291556,105260.0,105250.0,0.23512463]
[1749378834737,0.30211556,105260.0,105250.0,0.23512463]
[1749378835037,0.66291556,105260.0,105250.0,0.23512463]
[1749378835237,0.30211556,105260.0,105250.0,0.23512463]
[1749378835439,0.66291556,105260.0,105250.0,0.23512463]
[1749378835637,0.66271556,105260.0,105250.0,0.23512463]
[1749378836031,0.30191556,105260.0,105250.0,0.23512463]
[1749378836232,0.66331556,105260.0,105250.0,0.23512463]
[1749378836730,0.30251556,105260.0,105250.0,0.23632463]
[1749378837140,0.66331556,105260.0,105250.0,0.23632463]
[1749378837639,0.75227053,105260.0,105250.0,0.23632463]
[1749378839943,0.76227053,105260.0,105250.0,0.23632463]
[1749378840638,0.76167053,105260.0,105250.0,0.23512463]
[1749378841039,0.75227053,105260.0,105250.0,0.23632463]
[1749378842146,0.66331556,105260.0,105250.0,0.29569808]
[1749378842446,0.66351556,105260.0,105250.0,0.29569808]
[1749378842845,0.66331556,105260.0,105250.0,0.29569808]
[1749378843046,0.66351556,105260.0,105250.0,0.29569808]
[1749378843240,0.68351556,105260.0,105250.0,0.06132726]
[1749378843444,0.66351556,105260.0,105250.0,0.0464372]
[1749378843639,0.71351556,105260.0,105250.0,0.2363698]
[1749378843841,0.68351556,105260.0,105250.0,0.2363698]
[1749378847053,0.66351556,105260.0,105250.0,0.2363698]
[1749378847253,0.76351556,105260.0,105250.0,0.2363698]
[1749378848053,0.76351556,105260.0,105250.0,0.29574325]
[1749378848253,1.09351556,105260.0,105250.0,0.29574325]
[1749378848453,1.09351556,105260.0,105250.0,0.2363698]
[1749378848950,1.09351556,105260.0,105250.0,0.0464372]
[1749378849160,1.18247053,105260.0,105250.0,0.00195381]
[1749378849359,1.17247053,105260.0,105250.0,0.00195381]
[1749378849744,0.85247053,105260.0,105250.0,0.00195381]
[1749378849950,1.28371053,105260.0,105250.0,0.00195381]
[1749378854566,1.28371053,105260.0,105250.0,0.19188651]
[1749378855269,1.60371053,105260.0,105250.0,0.19188651]
[1749378855569,1.28371053,105260.0,105250.0,0.19188651]
[1749378856665,1.63371053,105260.0,105250.0,0.00195381]
[1749378856967,1.59371053,105260.0,105250.0,0.00195381]
[1749378857269,1.28371053,105260.0,105250.0,0.00195381]
[1749378857664,1.28371053,105260.0,105250.0,0.19188641]
[1749378858169,1.28371053,105260.0,105250.0,0.00195381]
[1749378859071,1.31334642,105260.0,105250.0,0.00195381]
[1749378860371,1.54334642,105260.0,105250.0,0.00195381]
[1749378861264,1.28372041,105260.0,105250.0,0.00195381]
[1749378863874,1.31334642,105260.0,105250.0,0.00195381]
[1749378865674,1.31334642,105260.0,105250.0,0.19188641]
[1749378866171,1.66371971,105260.0,105250.0,0.00195381]
[1749378868076,1.66371971,105260.0,105250.0,0.19188641]
[1749378868777,1.28371971,105260.0,105250.0,0.00195381]
[1749378868972,1.60371971,105260.0,105250.0,0.00195381]
[1749378869180,1.66371971,105260.0,105250.0,0.00195381]
[1749378873483,1.28371971,105260.0,105250.0,0.00195381]
[1749378874281,1.28351971,105260.0,105250.0,0.00195381]
[1749378875082,1.63351971,105260.0,105250.0,0.00195381]
[1749378878188,1.63351971,105260.0,105250.0,0.0464372]
[1749378883187,1.51351971,105260.0,105250.0,0.0464372]
[1749378888188,1.63211057,105260.0,105250.0,0.00195381]
[1749378892694,1.27131057,105260.0,105250.0,0.00195381]
[1749378892995,1.99291057,105260.0,105250.0,0.00195381]
[1749378895696,1.27131057,105260.0,105250.0,0.0464372]
[1749378895894,1.99291057,105260.0,105250.0,0.00195381]
[1749378896095,2.05218337,105260.0,105250.0,0.00195381]
[1749378896696,1.90394642,105260.0,105250.0,0.00195381]
[1749378904104,2.00314642,105260.0,105250.0,0.00195381]
[1749378906305,2.00314642,105260.0,105250.0,0.0464372]
[1749378907804,2.00314642,105260.0,105250.0,0.00195381]
[1749378908705,2.00314642,105260.0,105250.0,0.0464372]
[1749378909597,1.54020642,105260.0,105250.0,0.0464372]
[1749378909793,1.97140642,105260.0,105250.0,0.1103372]
[1749378916009,1.44100642,105260.0,105250.0,0.1103372]
[1749378916210,1.97132642,105260.0,105250.0,0.1103372]
[1749378916612,1.44100642,105260.0,105250.0,0.3002698]
[1749378916807,1.97132642,105260.0,105250.0,0.1103372]
[1749378917011,1.94182311,105260.0,105250.0,0.1103372]
[1749378920017,1.41150311,105260.0,105250.0,0.1103372]
[1749378920217,1.94182311,105260.0,105250.0,0.1103372]
[1749378922123,1.22022311,105260.0,105250.0,0.1103372]
[1749378922422,1.94182311,105260.0,105250.0,0.1103372]
[1749378927928,2.06041397,105260.0,105250.0,0.1103372]
[1749378929126,2.06041397,105260.0,105250.0,0.3002698]
[1749378930127,2.06041397,105260.0,105250.0,0.1103372]
[1749378930629,1.94182311,105260.0,105250.0,0.1103372]
[1749378931229,1.22022311,105260.0,105250.0,0.1103372]
[1749378931529,1.58098311,105260.0,105250.0,0.3002698]
[1749378931724,1.11806311,105260.0,105250.0,0.3002698]
[1749378932028,1.54918311,105260.0,105250.0,0.3318698]
[1749378935520,1.01890311,105260.0,105250.0,0.3318698]
[1749378935728,1.54914311,105260.0,105250.0,0.3318698]
[1749378936025,1.01890311,105260.0,105250.0,0.3318698]
[1749378936230,1.54914311,105260.0,105250.0,0.3318698]
[1749378936529,1.54934311,105260.0,105250.0,0.3318698]
[1749378939428,1.01910311,105260.0,105250.0,0.3318698]
[1749378939632,1.54934311,105260.0,105250.0,0.3318698]
[1749378940232,1.18854311,105260.0,105250.0,0.3318698]
[1749378940431,1.54934311,105260.0,105250.0,0.3318698]
[1749378946134,1.09945556,105260.0,105250.0,0.28738641]
[1749378946529,1.18850457,105260.0,105250.0,0.28738641]
[1749378946830,1.18850457,105260.0,105250.0,0.3318698]
[1749378946831,0.65826457,105260.0,105250.0,0.3318698]
[1749378948236,0.65826457,105260.0,105250.0,0.6926698]
[1749378948636,0.65826457,105260.0,105250.0,0.3318698]
[1749378949635,0.65826457,105260.0,105250.0,0.28738641]
[1749378950138,0.65826457,105260.0,105250.0,0.6926698]
[1749378950333,0.65826457,105260.0,105250.0,0.64818641]
[1749378950534,0.62636457,105260.0,105250.0,0.64818641]
[1749378950734,0.62636457,105260.0,105250.0,0.6926698]
[1749378951835,0.62436457,105260.0,105250.0,0.6926698]
[1749378953341,0.62336457,105260.0,105250.0,0.6926698]
[1749378953741,0.20431556,105260.0,105250.0,0.75204325]
[1749378953945,0.20411556,105260.0,105250.0,0.75204325]
[1749378954136,0.20431556,105260.0,105250.0,0.75204325]
[1749378954640,0.20411556,105260.0,105250.0,0.75204325]
[1749378954837,0.20431556,105260.0,105250.0,0.75204325]
[1749378956139,0.00484878,105260.0,105250.0,0.98663603]
[1749378956346,0.19456338,105260.0,105250.0,0.92820241]
[1749378956642,0.19476338,105260.0,105250.0,0.92820241]
[1749378957140,0.19476338,105260.0,105250.0,1.08820241]
[1749378957840,0.00484878,105260.0,105250.0,1.08820241]
[1749378958041,0.19476338,105260.0,105250.0,1.08820241]
[1749378958246,0.00484878,105260.0,105250.0,1.08820241]
[1749378958743,0.00484878,105260.0,105250.0,1.09769827]
[1749378959843,0.19476338,105260.0,105250.0,1.09769827]
[1749378960637,0.00484878,105260.0,105250.0,1.09769827]
[1749378961347,0.00484878,105260.0,105250.0,1.18651183]
[1749378964448,0.00484878,105260.0,105250.0,1.30534169]
[1749378965244,0.37209395,105280.0,105270.0,0.1898966]
[1749378965445,0.40209395,105280.0,105270.0,0.1898966]
[1749378965645,0.40229395,105280.0,105270.0,0.2216966]
[1749378965844,0.40209395,105280.0,105270.0,0.2216966]
[1749378966043,0.40229395,105280.0,105270.0,0.2216966]
[1749378966448,0.40229395,105280.0,105270.0,0.5824966]
[1749378966649,0.40229395,105280.0,105270.0,0.62688636]
[1749378966850,0.40929395,105280.0,105270.0,0.62688636]
[1749378967844,0.40909395,105280.0,105270.0,0.62688636]
[1749378968043,0.40929395,105280.0,105270.0,0.62688636]
[1749378968246,0.3522349,105280.0,105270.0,0.62688636]
[1749378968454,0.2572912,105280.0,105270.0,0.62688636]
[1749378968746,0.0072,105280.0,105270.0,0.71707271]
[1749378969052,0.1900785,105280.0,105270.0,1.00148291]
[1749378969254,0.2218785,105280.0,105270.0,1.00148291]
[1749378969550,0.2216785,105280.0,105270.0,1.00148291]
[1749378970161,0.2218785,105280.0,105270.0,1.00148291]
[1749378970746,0.2218785,105280.0,105270.0,0.95401031]
[1749378977159,0.2218785,105280.0,105270.0,1.80393031]
[1749378978861,0.2218785,105280.0,105270.0,1.77383031]
[1749378979662,0.22592728,105280.0,105270.0,1.77383031]
[1749378980262,0.22592728,105280.0,105270.0,1.24391031]
[1749378980466,0.25672728,105280.0,105270.0,1.77383031]
[1749378983460,0.25672728,105280.0,105270.0,1.71464396]
[1749378984369,0.22592728,105280.0,105270.0,1.71464396]
[1749378985964,0.22592728,105280.0,105270.0,1.74544396]
[1749378986163,0.22592728,105280.0,105270.0,1.80466413]
[1749378986560,0.03604878,105280.0,105270.0,1.80466413]
[1749378986768,0.00424878,105280.0,105270.0,1.80466413]
[1749378986968,0.19392728,105280.0,105270.0,1.80466413]
[1749378987168,0.00424878,105280.0,105270.0,1.80466413]
[1749378988368,0.19412728,105280.0,105270.0,1.80466413]
[1749378988569,0.00424878,105280.0,105270.0,1.80466413]
[1749378988967,0.00424878,105280.0,105270.0,1.74544396]
[1749378991973,0.00404878,105280.0,105270.0,1.74544396]
[1749378992174,0.00424878,105280.0,105270.0,1.74544396]
[1749378992874,0.00424878,105280.0,105270.0,1.86427382]
[1749378993879,0.00404878,105280.0,105270.0,1.86427382]
[1749378994080,0.00424878,105280.0,105270.0,1.86427382]
[1749378994277,1e-08,105280.0,105270.0,1.77546026]
[1749378994476,0.301137,105290.0,105280.0,0.1898785]
[1749378994477,0.269337,105290.0,105280.0,0.1898785]
[1749378994677,0.269337,105290.0,105280.0,0.71534648]
[1749378994879,0.269337,105290.0,105280.0,0.74844648]
[1749378995177,0.269337,105290.0,105280.0,0.75810198]
[1749378995679,0.269337,105290.0,105280.0,0.75885579]
[1749378995880,0.273337,105290.0,105280.0,0.75885579]
[1749378996068,0.273337,105290.0,105280.0,0.74920029]
[1749378996267,0.276337,105290.0,105280.0,0.77916217]
[1749378999082,0.276337,105290.0,105280.0,0.78870441]
[1749379000376,0.2288718,105290.0,105280.0,0.78870441]
[1749379001982,0.2288718,105290.0,105280.0,0.66987455]
[1749379003883,0.2288718,105290.0,105280.0,0.66033231]
[1749379004984,0.2288718,105290.0,105280.0,1.00033231]
[1749379006486,0.2288718,105290.0,105280.0,0.96723231]
[1749379007886,0.2288718,105290.0,105280.0,1.45699231]
[1749379008885,0.2288718,105290.0,105280.0,1.09619231]
[1749379009085,0.2288718,105290.0,105280.0,1.45699231]
[1749379009887,0.2288718,105290.0,105280.0,1.09619231]
[1749379010089,0.23292058,105290.0,105280.0,1.45699231]
[1749379010391,0.23292058,105290.0,105280.0,1.04606217]
[1749379010589,0.26622058,105290.0,105280.0,1.35292217]
[1749379010783,0.26622058,105290.0,105280.0,1.56292217]
[1749379010784,0.29832058,105290.0,105280.0,1.56292217]
[1749379012692,0.29832058,105290.0,105280.0,1.03316217]
[1749379012886,0.29832058,105290.0,105280.0,1.23292217]
[1749379013191,0.29832058,105290.0,105280.0,1.61292217]
[1749379018397,0.26622058,105290.0,105280.0,1.61292217]
[1749379018895,0.26622058,105290.0,105280.0,1.64352217]
[1749379020192,0.26622058,105290.0,105280.0,1.28272217]
[1749379020398,0.26622058,105290.0,105280.0,1.64352217]
[1749379024400,0.26622058,105290.0,105280.0,1.7920595]
[1749379024903,0.26622058,105290.0,105280.0,1.64352217]
[1749379031600,0.26622058,105290.0,105280.0,1.7920595]
[1749379033207,0.07634878,105290.0,105280.0,1.7920595]
[1749379033403,0.23290928,105290.0,105280.0,1.7920595]
[1749379033602,0.23290928,105290.0,105280.0,1.8222595]
[1749379035309,0.23290928,105290.0,105280.0,1.4614595]
[1749379035507,0.04304878,105290.0,105280.0,1.8222595]
[1749379036105,0.04304878,105290.0,105280.0,1.67372217]
[1749379036611,0.01104878,105290.0,105280.0,1.67372217]
[1749379036908,0.2201425,105300.0,105290.0,0.1898605]
[1749379037104,0.0303,105300.0,105290.0,0.76143393]
[1749379037311,0.2201425,105300.0,105290.0,0.76143393]
[1749379037503,0.2201425,105300.0,105290.0,0.70212456]
[1749379037711,0.0303,105300.0,105290.0,0.70212456]
[1749379038008,0.0355,105300.0,105290.0,0.74299036]
[1749379038208,0.0355,105300.0,105290.0,0.77619036]
[1749379038408,0.0405,105300.0,105290.0,0.77619036]
[1749379038609,0.42123121,105320.0,105290.0,0.63379106]
[1749379038809,0.42123121,105320.0,105310.0,0.23426815]
[1749379038810,0.52213121,105320.0,105310.0,0.23426815]
[1749379039004,0.52213121,105320.0,105310.0,0.29352649]
[1749379039200,0.0706,105320.0,105310.0,0.65432649]
[1749379039504,0.2202884,105330.0,105320.0,0.1898064]
[1749379039704,0.2202884,105330.0,105320.0,1.11808239]
[1749379040008,0.2506884,105330.0,105320.0,0.65416164]
[1749379040203,0.2833884,105330.0,105320.0,0.65416164]
[1749379040409,0.2833884,105330.0,105320.0,0.59498679]
[1749379041702,0.2843884,105330.0,105320.0,0.59498679]
[1749379042109,0.2213884,105330.0,105320.0,0.59498679]
[1749379042305,0.2211884,105330.0,105320.0,0.62818679]
[1749379042511,0.2213884,105330.0,105320.0,0.62818679]
[1749379042713,0.2543884,105330.0,105320.0,0.62818679]
[1749379045214,0.2543884,105330.0,105320.0,0.66038679]
[1749379049414,0.2213884,105330.0,105320.0,0.66038679]
[1749379049615,0.2213884,105330.0,105320.0,0.69198679]
[1749379050313,0.2211884,105330.0,105320.0,0.69198679]
[1749379050514,0.2213884,105330.0,105320.0,0.69198679]
[1749379051310,0.2213884,105330.0,105320.0,0.98038679]
[1749379052211,0.2213884,105330.0,105320.0,0.9360064]
[1749379052619,0.2213884,105330.0,105320.0,0.98038679]
[1749379054019,0.1897884,105330.0,105320.0,1.34225389]
[1749379054326,0.1897884,105330.0,105320.0,1.72305389]
[1749379054814,0.3321259,105340.0,105330.0,0.1897884]
[1749379055014,0.3521259,105340.0,105330.0,0.6145884]
[1749379055520,0.3046789,105340.0,105330.0,0.6145884]
[1749379055713,0.2846789,105340.0,105330.0,0.6145884]
[1749379055908,0.2848789,105340.0,105330.0,0.6145884]
[1749379056507,0.1899859,105340.0,105330.0,0.6471884]
[1749379056917,0.1937859,105340.0,105330.0,0.6471884]
[1749379057221,0.1939859,105340.0,105330.0,0.6471884]
[1749379059221,0.2261859,105340.0,105330.0,0.6471884]
[1749379062724,0.2261859,105340.0,105330.0,0.6145884]
[1749379063126,0.2578859,105340.0,105330.0,0.6145884]
[1749379064522,0.3578859,105340.0,105330.0,0.6145884]
[1749379064720,0.2578859,105340.0,105330.0,0.6145884]
[1749379066724,0.3678859,105340.0,105330.0,0.6145884]
[1749379066925,0.2578859,105340.0,105330.0,0.6145884]
[1749379067418,0.2578859,105340.0,105330.0,0.65896879]
[1749379067618,0.2578859,105340.0,105330.0,0.6597226]
[1749379068425,0.34693491,105340.0,105330.0,0.6597226]
[1749379069232,0.31523491,105340.0,105330.0,0.6597226]
[1749379069419,0.31523491,105340.0,105330.0,0.6923226]
[1749379070030,0.31928369,105340.0,105330.0,0.6923226]
[1749379071627,0.31928369,105340.0,105330.0,0.75149745]
[1749379072321,0.32928369,105340.0,105330.0,0.75149745]
[1749379072628,0.33928369,105340.0,105330.0,0.75149745]
[1749379072825,0.31928369,105340.0,105330.0,0.75149745]
[1749379073021,0.34928369,105340.0,105330.0,0.75149745]
[1749379073730,0.36928369,105340.0,105330.0,0.75149745]
[1749379074526,0.36928369,105340.0,105330.0,0.39069745]
[1749379074826,0.36928369,105340.0,105330.0,1.11229745]
[1749379076234,0.48787455,105340.0,105330.0,1.00874221]
[1749379076419,0.34882554,105340.0,105330.0,1.00874221]
[1749379076620,0.39882554,105340.0,105330.0,1.00874221]
[1749379076834,0.34882554,105340.0,105330.0,1.00874221]
[1749379077128,0.437799,105340.0,105330.0,1.00874221]
[1749379077430,0.34882554,105340.0,105330.0,1.00874221]
[1749379077934,0.40560339,105340.0,105330.0,1.00874221]
[1749379078821,0.28701253,105340.0,105330.0,1.00874221]
[1749379081730,0.40560339,105340.0,105330.0,1.00874221]
[1749379083331,0.40540339,105340.0,105330.0,1.00874221]
[1749379083531,0.40560339,105340.0,105330.0,1.00874221]
[1749379086226,0.28701253,105340.0,105330.0,1.11229745]
[1749379086842,0.28679783,105340.0,105330.0,1.11229745]
[1749379087134,0.28699783,105340.0,105330.0,1.11229745]
[1749379088044,0.00824878,105340.0,105330.0,1.11229745]
[1749379088334,0.00804878,105340.0,105330.0,1.11229745]
[1749379088534,0.00824878,105340.0,105330.0,1.11229745]
[1749379088933,0.00804878,105340.0,105330.0,1.06791706]
[1749379089134,0.00824878,105340.0,105330.0,1.06791706]
[1749379089324,0.00824878,105340.0,105330.0,1.07791706]
[1749379089525,0.00824878,105340.0,105330.0,1.16680457]
[1749379089933,0.00824878,105340.0,105330.0,1.10762972]
[1749379090426,0.19801918,105340.0,105330.0,1.16683407]
[1749379090632,0.19801918,105340.0,105330.0,1.10762972]
[1749379090835,0.00824878,105340.0,105330.0,1.16683335]
[1749379091034,0.00824878,105340.0,105330.0,1.10762972]
[1749379091238,0.00824878,105340.0,105330.0,1.16682292]
[1749379094037,0.00804878,105340.0,105330.0,1.16682292]
[1749379094236,0.00824878,105340.0,105330.0,1.18400382]
[1749379095028,0.00824878,105340.0,105330.0,1.16682292]
[1749379096034,0.00824878,105340.0,105330.0,1.09762972]
[1749379096340,0.00804878,105340.0,105330.0,1.42762972]
[1749379096533,0.00824878,105340.0,105330.0,1.42762972]
[1749379096835,0.57427957,105360.0,105350.0,0.1295048]
[1749379097035,0.70427957,105360.0,105350.0,0.8511048]
[1749379097233,0.70427957,105360.0,105350.0,0.9130048]
[1749379097428,0.34132027,105360.0,105350.0,0.9130048]
[1749379097742,0.44207682,105360.0,105350.0,1.01653335]
[1749379097929,0.44207682,105360.0,105350.0,1.04953335]
[1749379098128,0.44227682,105360.0,105350.0,1.04953335]
[1749379098529,0.44727682,105360.0,105350.0,1.04953335]
[1749379099430,0.4513256,105360.0,105350.0,1.04953335]
[1749379100231,0.4513256,105360.0,105350.0,0.99037418]
[1749379100741,0.4513256,105360.0,105350.0,0.99112799]
[1749379101725,0.43389984,105360.0,105350.0,0.99112799]
[1749379102034,0.42889984,105360.0,105350.0,0.99112799]
[1749379102240,0.43089984,105360.0,105350.0,0.99112799]
[1749379104339,0.44827918,105360.0,105350.0,0.99112799]
[1749379105042,0.40009984,105360.0,105350.0,0.99112799]
[1749379107945,0.41733018,105360.0,105350.0,0.99112799]
[1749379108246,0.41733018,105360.0,105350.0,0.94675861]
[1749379109242,0.41733018,105360.0,105350.0,0.99112799]
[1749379109549,0.40009984,105360.0,105350.0,0.99112799]
[1749379110048,0.43319984,105360.0,105350.0,0.99112799]
[1749379111240,0.45046272,105360.0,105350.0,0.99112799]
[1749379111447,0.45046272,105360.0,105350.0,0.95812799]
[1749379111847,0.45046272,105360.0,105350.0,0.72235381]
[1749379111848,0.71046272,105360.0,105350.0,0.72235381]
[1749379112148,0.86304057,105360.0,105350.0,0.72235381]
[1749379112847,1.39232057,105360.0,105350.0,0.72235381]
[1749379115450,0.55304057,105360.0,105350.0,0.72235381]
[1749379115645,1.40172057,105360.0,105350.0,0.91210621]
[1749379115946,0.98132057,105360.0,105350.0,0.72235381]
[1749379118951,1.01312057,105360.0,105350.0,0.72235381]
[1749379122054,1.19428057,105360.0,105350.0,0.91210621]
[1749379122256,1.19428057,105360.0,105350.0,0.94300621]
[1749379122455,0.66424057,105360.0,105350.0,0.94300621]
[1749379122655,1.41284057,105360.0,105350.0,0.94300621]
[1749379122953,1.05264057,105360.0,105350.0,0.97400621]
[1749379123157,1.30386272,105360.0,105350.0,0.97400621]
[1749379124766,0.96386272,105360.0,105350.0,0.97400621]
[1749379125461,0.40046272,105360.0,105350.0,0.97400621]
[1749379125647,0.93078272,105360.0,105350.0,1.04857559]
[1749379125855,1.01976057,105360.0,105350.0,1.00420621]
[1749379126554,1.01956057,105360.0,105350.0,1.00420621]
[1749379126752,1.01976057,105360.0,105350.0,1.00420621]
[1749379126959,1.04937358,105360.0,105350.0,1.00420621]
[1749379128062,1.04929358,105360.0,105350.0,1.00420621]
[1749379129861,1.04909358,105360.0,105350.0,1.00420621]
[1749379130162,1.04929358,105360.0,105350.0,1.00420621]
[1749379130362,1.04921358,105360.0,105350.0,1.00420621]
[1749379130763,1.01953308,105360.0,105350.0,1.00420621]
[1749379131452,1.01933308,105360.0,105350.0,1.00420621]
[1749379131656,1.01953308,105360.0,105350.0,1.00420621]
[1749379132770,0.92025308,105360.0,105350.0,1.00420621]
[1749379133062,0.45623308,105360.0,105350.0,1.00420621]
[1749379134064,0.37623308,105360.0,105350.0,1.00420621]
[1749379136165,0.28736272,105360.0,105350.0,1.04857559]
[1749379137563,0.37623308,105360.0,105350.0,1.04857559]
[1749379138866,0.37603308,105360.0,105350.0,1.04857559]
[1749379139068,0.37623308,105360.0,105350.0,1.04857559]
[1749379142863,0.28736272,105360.0,105350.0,1.10773476]
[1749379143258,0.28736272,105360.0,105350.0,1.53865476]
[1749379143565,0.28736272,105360.0,105350.0,1.10773476]
[1749379150877,0.28716272,105360.0,105350.0,1.10773476]
[1749379151179,0.28736272,105360.0,105350.0,1.10773476]
[1749379152975,0.28736272,105360.0,105350.0,1.53881476]
[1749379160077,0.28736272,105360.0,105350.0,0.81721476]
[1749379160282,0.28736272,105360.0,105350.0,1.53881476]
[1749379164575,0.31906272,105360.0,105350.0,1.53881476]
[1749379166182,0.40793308,105360.0,105350.0,1.47965559]
[1749379166886,0.40793308,105360.0,105350.0,1.44925559]
[1749379167092,0.50793308,105360.0,105350.0,1.44925559]
[1749379167386,0.40793308,105360.0,105350.0,1.44925559]
[1749379168985,0.40793308,105360.0,105350.0,1.47935559]
[1749379171191,0.37623308,105360.0,105350.0,1.47935559]
[1749379173288,0.37623308,105360.0,105350.0,1.04847559]
[1749379173481,0.37623308,105360.0,105350.0,1.47915559]
[1749379175785,0.37623308,105360.0,105350.0,0.75755559]
[1749379175986,0.37623308,105360.0,105350.0,1.47915559]
[1749379176186,0.28736272,105360.0,105350.0,1.49394538]
[1749379176782,0.28736272,105360.0,105350.0,1.49386538]
[1749379186196,0.28736272,105360.0,105350.0,1.53828782]
[1749379187800,0.28736272,105360.0,105350.0,1.49386538]
[1749379188798,0.28736272,105360.0,105350.0,1.5382878]
[1749379189196,0.37623308,105360.0,105350.0,1.5382878]
[1749379191201,0.30211642,105360.0,105350.0,1.5382878]
[1749379194806,0.37704864,105360.0,105350.0,1.62717531]
[1749379195506,0.30211642,105360.0,105350.0,1.62717531]
[1749379195807,0.21324606,105360.0,105350.0,1.49386538]
[1749379200212,0.21324606,105360.0,105350.0,1.58275289]
[1749379203218,0.21324606,105360.0,105350.0,0.91481758]
[1749379203407,0.46531642,105360.0,105350.0,0.8259322]
[1749379203606,0.46531642,105360.0,105350.0,1.0156846]
[1749379203813,0.64531642,105360.0,105350.0,1.0156846]
[1749379205322,1.01531642,105360.0,105350.0,0.8259322]
[1749379205823,1.01531642,105360.0,105350.0,1.0156846]
[1749379207828,0.92644606,105360.0,105350.0,1.0156846]
[1749379208122,1.01531642,105360.0,105350.0,1.0156846]
[1749379208526,1.01521642,105360.0,105350.0,1.0156846]
[1749379208724,1.01521642,105360.0,105350.0,0.8259322]
[1749379208915,1.44565642,105360.0,105350.0,1.0156846]
[1749379209224,1.44565642,105360.0,105350.0,0.76677303]
[1749379209425,1.44565642,105360.0,105350.0,0.95652543]
[1749379212127,1.44565642,105360.0,105350.0,0.76677303]
[1749379213427,1.54453642,105360.0,105350.0,0.72235381]
[1749379216337,1.45566606,105360.0,105350.0,0.72235381]
[1749379218330,1.45566606,105360.0,105350.0,0.75295381]
[1749379219231,1.07566606,105360.0,105350.0,0.75295381]
[1749379219430,1.07566606,105360.0,105350.0,0.94270621]